bitfinex/quotes_BTCUSD_20241003
["timestamp","ask_amount","ask_price","bid_price","bid_amount"]
[1727962871730,0.02600138,60291.0,60286.0,0.165874]
[1727962872025,0.02600138,60291.0,60290.0,0.44135088]
[1727962872246,0.331649,60305.0,60292.0,0.165858]
[1727962872247,0.165824,60305.0,60292.0,0.165858]
[1727962872480,0.02599855,60305.0,60293.0,0.0808]
[1727962872757,0.02599855,60305.0,60295.0,0.165849]
[1727962873035,0.02599855,60305.0,60296.0,0.165848]
[1727962873274,0.02599855,60305.0,60295.0,0.24993543]
[1727962873528,0.33167,60301.0,60294.0,0.0913]
[1727962873806,0.03576686,60300.0,60294.0,0.0913]
[1727962874047,0.02599855,60305.0,60299.0,0.24993543]
[1727962874325,0.02599855,60305.0,60298.0,0.44135088]
[1727962874577,0.02599855,60305.0,60298.0,0.77303388]
[1727962874787,0.02599855,60305.0,60299.0,0.24993543]
[1727962875030,0.02599855,60305.0,60295.0,0.165851]
[1727962875271,0.02599855,60305.0,60294.0,0.0913]
[1727962875272,0.06176151,60305.0,60294.0,0.0913]
[1727962875822,0.331639,60307.0,60294.0,0.0913]
[1727962876063,0.331661,60303.0,60294.0,0.0913]
[1727962876321,0.165835,60301.0,60294.0,0.0913]
[1727962876577,0.165825,60305.0,60295.0,0.165849]
[1727962876852,0.165834,60301.0,60294.0,0.0913]
[1727962877284,0.0165834,60301.0,60294.0,0.0913]
[1727962877541,0.165844,60298.0,60294.0,0.0913]
[1727962877782,0.331679,60300.0,60294.0,0.0913]
[1727962878024,0.002,60301.0,60294.0,0.0913]
[1727962878268,0.002,60301.0,60300.0,0.165837]
[1727962878771,0.002,60301.0,60298.0,0.44135088]
[1727962878772,0.002,60301.0,60298.0,0.165841]
[1727962879033,0.331642,60306.0,60294.0,0.0913]
[1727962879279,0.331537,60325.0,60294.0,0.0913]
[1727962879280,0.165842,60299.0,60294.0,0.0913]
[1727962879517,0.431597,60315.0,60300.0,0.165835]
[1727962879753,0.001636,60316.0,60304.0,0.44135088]
[1727962879996,0.001636,60316.0,60294.0,0.0913]
[1727962879997,0.001636,60316.0,60310.0,0.60715988]
[1727962880280,0.001636,60316.0,60310.0,0.68965988]
[1727962880753,0.165801,60314.0,60310.0,0.0825]
[1727962881015,0.001636,60316.0,60310.0,0.0825]
[1727962881281,0.002636,60311.0,60310.0,0.68965988]
[1727962881784,0.001636,60316.0,60315.0,0.165796]
[1727962882039,0.001638,60327.0,60326.0,0.165766]
[1727962882526,0.001638,60327.0,60326.0,0.28852533]
[1727962882993,0.001638,60327.0,60326.0,0.49520143]
[1727962883237,0.001638,60327.0,60326.0,0.245266]
[1727962883481,0.002638,60327.0,60326.0,0.245266]
[1727962883933,0.001638,60327.0,60326.0,0.245266]
[1727962884499,0.002638,60327.0,60326.0,0.245266]
[1727962884742,0.002638,60327.0,60326.0,0.0795]
[1727962884976,0.002638,60327.0,60315.0,0.0914]
[1727962884977,0.002638,60327.0,60318.0,0.24993543]
[1727962885234,0.165766,60326.0,60325.0,0.24993543]
[1727962885468,0.165766,60326.0,60318.0,0.85707331]
[1727962885469,0.165772,60324.0,60318.0,0.85707331]
[1727962885740,0.331533,60326.0,60318.0,0.85707331]
[1727962885741,0.331532,60326.0,60319.0,0.16909831]
[1727962885954,0.002638,60327.0,60319.0,0.33488231]
[1727962886189,0.001638,60327.0,60324.0,0.44135088]
[1727962886486,0.165785,60319.0,60318.0,0.44135088]
[1727962886733,0.16579,60317.0,60316.0,0.0832]
[1727962887241,0.001638,60327.0,60316.0,0.0832]
[1727962887242,0.001638,60327.0,60319.0,0.002]
[1727962887482,0.331537,60325.0,60319.0,0.002]
[1727962887728,0.165783,60320.0,60317.0,0.24993543]
[1727962887978,0.165783,60320.0,60317.0,0.2532429]
[1727962888221,0.165777,60322.0,60317.0,0.41572443]
[1727962888472,0.16578,60321.0,60317.0,0.41572443]
[1727962888744,0.16578,60321.0,60317.0,0.165789]
[1727962889242,0.165778,60322.0,60316.0,0.52855088]
[1727962889493,0.16579,60317.0,60316.0,0.52455088]
[1727962889733,0.16579,60317.0,60316.0,0.0832]
[1727962889989,0.331553,60323.0,60316.0,0.0832]
[1727962890252,0.331477,60336.0,60322.0,0.44135088]
[1727962890490,0.331477,60336.0,60316.0,0.0832]
[1727962890491,0.331477,60336.0,60317.0,0.44135088]
[1727962890738,0.165774,60323.0,60319.0,0.165783]
[1727962890969,0.331532,60326.0,60318.0,0.24993543]
[1727962890970,0.331544,60324.0,60318.0,0.24993543]
[1727962891192,0.16579,60317.0,60316.0,0.0832]
[1727962891664,0.16579,60317.0,60302.0,0.33166]
[1727962891665,0.44135088,60322.0,60305.0,0.1893]
[1727962891897,0.16582,60306.0,60305.0,0.0911]
[1727962892194,0.16582,60306.0,60305.0,0.0876]
[1727962892425,0.16582,60306.0,60305.0,0.0065]
[1727962892682,0.28882,60306.0,60305.0,0.003]
[1727962893199,0.165827,60304.0,60300.0,0.41527143]
[1727962893443,0.02599344,60307.0,60300.0,0.24943543]
[1727962893687,0.331642,60306.0,60301.0,0.165834]
[1727962893948,0.331642,60306.0,60300.0,0.24943543]
[1727962893949,0.011,60306.0,60305.0,0.165823]
[1727962894185,0.011,60306.0,60305.0,0.162323]
[1727962894431,0.165795,60316.0,60305.0,0.165821]
[1727962894753,0.02599284,60320.0,60304.0,0.0969]
[1727962894754,0.24993543,60315.0,60304.0,0.0969]
[1727962894982,0.02599284,60320.0,60305.0,0.24993543]
[1727962894983,0.165821,60306.0,60305.0,0.24993543]
[1727962895254,0.35755984,60320.0,60305.0,0.24993543]
[1727962895524,0.001636,60307.0,60305.0,0.24993543]
[1727962895777,0.001636,60307.0,60304.0,0.0969]
[1727962895778,0.001636,60307.0,60306.0,0.93881088]
[1727962896019,0.001636,60307.0,60306.0,1.01941088]
[1727962896263,0.0002,60339.0,60306.0,0.74132265]
[1727962896539,0.24993543,60320.0,60306.0,0.0806]
[1727962896812,0.333125,60334.0,60306.0,0.33053543]
[1727962896813,0.165818,60307.0,60306.0,0.33053543]
[1727962897098,0.166818,60307.0,60306.0,0.0826]
[1727962897555,0.165818,60307.0,60306.0,0.0806]
[1727962897782,0.331628,60309.0,60300.0,0.33313543]
[1727962898012,0.345564,60320.0,60300.0,0.33313543]
[1727962898013,0.33164,60307.0,60300.0,0.33313543]
[1727962898240,0.165834,60301.0,60300.0,0.33313543]
[1727962898479,0.165834,60301.0,60300.0,0.0832]
[1727962898739,0.345564,60320.0,60300.0,0.0832]
[1727962898740,0.331653,60304.0,60300.0,0.0832]
[1727962898979,0.165834,60301.0,60300.0,0.0832]
[1727962899626,0.02799489,60307.0,60300.0,0.0832]
[1727962899951,0.1,60317.0,60301.0,0.24993543]
[1727962900184,0.023,60321.0,60306.0,0.44135088]
[1727962900414,0.165791,60317.0,60313.0,0.165801]
[1727962900652,0.1,60322.0,60314.0,0.331595]
[1727962900879,0.101638,60327.0,60315.0,0.00331539]
[1727962901109,0.165786,60319.0,60315.0,0.165795]
[1727962901344,0.101638,60327.0,60317.0,0.16579]
[1727962901345,0.1,60323.0,60317.0,0.16579]
[1727962901575,0.331554,60322.0,60314.0,0.331593]
[1727962901817,0.331585,60317.0,60311.0,0.0923]
[1727962902046,0.331585,60317.0,60301.0,0.24993543]
[1727962902047,0.165809,60310.0,60309.0,0.24993543]
[1727962902742,0.331599,60314.0,60304.0,0.165826]
[1727962902967,0.023,60313.0,60303.0,0.331658]
[1727962903197,0.165819,60307.0,60303.0,0.165827]
[1727962903443,0.023,60301.0,60290.0,0.081]
[1727962903669,0.023,60301.0,60285.0,0.25195543]
[1727962903670,0.1,60316.0,60285.0,0.25195543]
[1727962903671,0.023,60294.0,60285.0,0.25195543]
[1727962903897,0.44135088,60304.0,60285.0,0.25195543]
[1727962903898,0.331736,60289.0,60285.0,0.25195543]
[1727962904132,0.188875,60286.0,60285.0,0.25195543]
[1727962904637,0.188875,60286.0,60285.0,0.00202]
[1727962904893,0.023,60291.0,60286.0,0.165874]
[1727962905150,0.02599867,60295.0,60287.0,0.001612]
[1727962905151,0.331703,60295.0,60287.0,0.001612]
[1727962905412,0.165852,60295.0,60287.0,0.333357]
[1727962905650,0.165852,60295.0,60290.0,0.165862]
[1727962905872,0.167854,60294.0,60290.0,0.165862]
[1727962906121,0.002,60294.0,60288.0,0.165869]
[1727962906384,0.165836,60301.0,60296.0,0.165847]
[1727962906617,0.425045,60324.0,60287.0,0.44335088]
[1727962906618,0.331716,60293.0,60287.0,0.44335088]
[1727962906895,0.44135088,60317.0,60287.0,0.44335088]
[1727962906896,0.023,60307.0,60287.0,0.44335088]
[1727962907166,0.025,60323.0,60295.0,0.16585]
[1727962907167,0.165839,60300.0,60295.0,0.16585]
[1727962907385,0.425048,60324.0,60285.0,0.00202]
[1727962907386,0.331638,60307.0,60299.0,0.331679]
[1727962907606,0.1,60325.0,60299.0,0.44135088]
[1727962907856,0.331607,60313.0,60299.0,0.44135088]
[1727962908088,0.001636,60334.0,60315.0,0.44135088]
[1727962908089,0.02762873,60334.0,60315.0,0.44135088]
[1727962908340,0.02762873,60334.0,60308.0,0.33163]
[1727962908341,0.16578,60321.0,60316.0,0.16887955]
[1727962908625,0.001636,60334.0,60322.0,0.079]
[1727962908854,0.01752274,60359.0,60338.0,0.60708388]
[1727962908855,0.0002,60359.0,60338.0,0.60708388]
[1727962909087,0.331371,60356.0,60338.0,0.70408388]
[1727962909318,0.331371,60356.0,60338.0,0.83057832]
[1727962909554,0.0002,60359.0,60338.0,0.98634684]
[1727962909781,0.0002,60359.0,60338.0,1.09134684]
[1727962910031,3.935036,60345.0,60344.0,0.69436688]
[1727962910281,3.935036,60345.0,60344.0,0.84441414]
[1727962910282,3.851136,60345.0,60344.0,0.84441414]
[1727962910738,3.851136,60345.0,60344.0,1.00760085]
[1727962911212,3.751336,60345.0,60344.0,1.01260085]
[1727962911670,2.70477066,60345.0,60344.0,0.93030085]
[1727962911895,2.19096939,60345.0,60344.0,0.91344359]
[1727962912162,2.19196939,60345.0,60344.0,0.92744359]
[1727962912661,0.83402318,60345.0,60344.0,1.35679447]
[1727962912916,0.0002,60359.0,60358.0,0.313868]
[1727962913150,0.0002,60359.0,60358.0,0.92040559]
[1727962913385,0.0002,60359.0,60358.0,0.96319003]
[1727962913896,0.0002,60359.0,60358.0,0.95119003]
[1727962914120,0.0002,60359.0,60358.0,0.43386471]
[1727962914817,0.0002,60359.0,60358.0,0.165678]
[1727962915560,0.0002,60359.0,60358.0,0.008]
[1727962915561,0.0012,60359.0,60358.0,0.008]
[1727962915791,0.166875,60359.0,60358.0,0.008]
[1727962916047,0.165876,60359.0,60354.0,0.24993543]
[1727962916294,0.0012,60359.0,60358.0,0.008]
[1727962916519,0.0012,60359.0,60358.0,5.008]
[1727962916751,0.2319976,60359.0,60358.0,5.0]
[1727962916989,0.188875,60359.0,60358.0,5.0]
[1727962917216,0.189875,60359.0,60358.0,5.0]
[1727962917494,0.0012,60359.0,60358.0,5.0]
[1727962917781,0.0012,60359.0,60358.0,5.165678]
[1727962918041,0.0012,60359.0,60358.0,5.60702888]
[1727962918282,0.0012,60359.0,60358.0,5.165678]
[1727962918795,0.0002,60359.0,60358.0,5.165678]
[1727962919023,0.0002,60359.0,60358.0,5.0]
[1727962919290,0.246575,60359.0,60358.0,5.0]
[1727962920016,0.269575,60359.0,60358.0,5.0]
[1727962920266,0.29154626,60359.0,60358.0,5.0]
[1727962920805,0.29154626,60359.0,60358.0,4.03278726]
[1727962920806,0.48760249,60359.0,60358.0,4.03278726]
[1727962921046,0.48960249,60359.0,60358.0,2.99260502]
[1727962921294,0.40890249,60359.0,60358.0,2.90930502]
[1727962921536,0.40890249,60359.0,60358.0,2.52805124]
[1727962921537,1.42001949,60359.0,60358.0,2.52805124]
[1727962921779,1.42001949,60359.0,60358.0,1.66574381]
[1727962922033,0.64414949,60359.0,60358.0,1.59947181]
[1727962922291,0.60044749,60359.0,60358.0,1.59947181]
[1727962922603,0.31248026,60359.0,60358.0,1.59947181]
[1727962922804,0.31148026,60359.0,60358.0,1.59947181]
[1727962923312,0.32548026,60359.0,60358.0,1.60047181]
[1727962923851,0.31148026,60359.0,60358.0,1.59947181]
[1727962924069,0.31148026,60359.0,60358.0,1.60047181]
[1727962924070,0.20248026,60359.0,60358.0,1.60047181]
[1727962924324,0.28899619,60359.0,60358.0,1.60047181]
[1727962925290,0.37499619,60359.0,60358.0,1.59947181]
[1727962925530,0.31148026,60359.0,60358.0,1.59947181]
[1727962925801,0.276509,60359.0,60358.0,1.60047181]
[1727962926038,0.276509,60359.0,60358.0,1.86034981]
[1727962926039,0.01468527,60359.0,60358.0,1.86034981]
[1727962926279,0.00068527,60359.0,60358.0,1.69367181]
[1727962926514,0.01468527,60359.0,60358.0,1.69467181]
[1727962927009,0.00068527,60359.0,60358.0,1.85934981]
[1727962927281,0.001638,60366.0,60365.0,0.165658]
[1727962927543,0.001638,60366.0,60365.0,0.60700888]
[1727962928543,0.001636,60368.0,60367.0,0.245453]
[1727962929271,0.001638,60388.0,60376.0,0.165628]
[1727962929509,0.001638,60388.0,60376.0,0.43192629]
[1727962929751,0.001638,60388.0,60378.0,0.165623]
[1727962930019,0.001638,60388.0,60378.0,0.51310971]
[1727962930310,0.001638,60388.0,60386.0,0.165601]
[1727962930588,0.001638,60388.0,60378.0,0.0793]
[1727962930824,0.165608,60384.0,60380.0,0.24993543]
[1727962931058,0.001636,60394.0,60380.0,0.24993543]
[1727962931059,0.001636,60394.0,60387.0,0.24993543]
[1727962931313,0.001636,60394.0,60393.0,0.60693288]
[1727962932059,0.001634,60395.0,60394.0,0.165579]
[1727962932320,0.001638,60397.0,60396.0,0.165573]
[1727962932562,0.02595173,60418.0,60405.0,0.338849]
[1727962932797,0.001634,60420.0,60405.0,0.338849]
[1727962932798,0.001634,60420.0,60411.0,0.165532]
[1727962933257,0.001634,60420.0,60418.0,0.257413]
[1727962933529,0.001634,60420.0,60418.0,0.42059971]
[1727962933727,0.001634,60420.0,60418.0,0.257413]
[1727962934016,0.001634,60420.0,60418.0,0.26835641]
[1727962934257,0.001636,60428.0,60426.0,0.60684188]
[1727962934484,0.24993543,60436.0,60435.0,0.165467]
[1727962934720,0.24993543,60436.0,60435.0,0.69911788]
[1727962934991,0.001838,60439.0,60435.0,0.0923]
[1727962935288,0.001838,60439.0,60426.0,0.0804]
[1727962935814,0.165482,60430.0,60426.0,0.0804]
[1727962936078,0.165499,60423.0,60422.0,0.0923]
[1727962936315,0.165513,60418.0,60417.0,0.24993543]
[1727962936588,0.16551,60419.0,60418.0,0.012]
[1727962936836,0.331016,60420.0,60418.0,0.012]
[1727962936837,0.165509,60420.0,60418.0,0.012]
[1727962937100,0.165509,60420.0,60417.0,0.24993543]
[1727962937101,0.330963,60430.0,60417.0,0.41545143]
[1727962937349,0.001838,60439.0,60415.0,0.0818]
[1727962937350,0.24993543,60429.0,60415.0,0.0818]
[1727962937602,0.04799354,60428.0,60415.0,0.0818]
[1727962937834,0.16551,60419.0,60415.0,0.0818]
[1727962938095,0.023,60423.0,60415.0,0.0818]
[1727962938322,0.165492,60426.0,60415.0,0.247321]
[1727962938551,0.165494,60425.0,60415.0,0.0818]
[1727962938797,0.165503,60422.0,60415.0,0.0818]
[1727962938997,0.330991,60425.0,60415.0,0.0818]
[1727962939269,0.165503,60422.0,60415.0,0.0818]
[1727962939508,0.0496494,60422.0,60415.0,0.0818]
[1727962939743,0.02594384,60430.0,60415.0,0.0818]
[1727962939744,0.165519,60416.0,60415.0,0.0818]
[1727962939966,0.331051,60414.0,60408.0,0.0987]
[1727962940238,0.165538,60409.0,60408.0,0.0987]
[1727962940705,0.2483035,60409.0,60408.0,0.0987]
[1727962940957,0.2483035,60409.0,60405.0,0.0782]
[1727962940958,0.165546,60406.0,60405.0,0.0782]
[1727962941500,0.02595009,60409.0,60396.0,0.0941]
[1727962941718,0.02595009,60409.0,60393.0,0.24993543]
[1727962941719,0.33113,60400.0,60393.0,0.24993543]
[1727962941953,0.165557,60402.0,60401.0,0.24993543]
[1727962942218,0.02595009,60409.0,60393.0,0.24993543]
[1727962942508,0.02595009,60409.0,60397.0,0.165569]
[1727962942815,0.02595009,60409.0,60394.0,0.331158]
[1727962942816,0.24993543,60412.0,60405.0,0.44135088]
[1727962943104,0.002,60409.0,60399.0,0.44135088]
[1727962943328,0.24993543,60406.0,60398.0,0.1723]
[1727962943578,0.24993543,60406.0,60400.0,0.24993543]
[1727962943579,0.331095,60406.0,60400.0,0.24993543]
[1727962943813,0.007,60409.0,60404.0,0.44135088]
[1727962944085,0.007,60409.0,60407.0,0.165543]
[1727962944348,0.331045,60415.0,60405.0,0.165547]
[1727962944604,0.16554,60409.0,60398.0,0.61465088]
[1727962944868,0.16554,60409.0,60402.0,0.41549043]
[1727962945105,0.165543,60408.0,60401.0,0.167188]
[1727962945338,0.165544,60407.0,60401.0,0.00163]
[1727962945574,0.165557,60402.0,60401.0,0.00163]
[1727962946260,0.023,60415.0,60401.0,0.00163]
[1727962946261,0.331092,60407.0,60401.0,0.00163]
[1727962946510,0.023,60415.0,60401.0,0.00163]
[1727962946511,0.165557,60402.0,60401.0,0.00163]
[1727962947991,0.24993543,60409.0,60401.0,0.00163]
[1727962948251,0.165557,60402.0,60401.0,0.00163]
[1727962948728,0.2814429,60402.0,60401.0,0.00163]
[1727962948959,0.19150884,60402.0,60401.0,0.00163]
[1727962949234,0.31450884,60402.0,60401.0,0.00163]
[1727962949472,0.31850884,60402.0,60401.0,0.00163]
[1727962949951,0.02595184,60402.0,60401.0,0.00163]
[1727962950196,0.02595184,60402.0,60401.0,0.16719]
[1727962950443,0.24993543,60433.0,60409.0,0.331075]
[1727962950686,0.24993543,60417.0,60416.0,0.165519]
[1727962950925,0.24993543,60433.0,60414.0,0.331048]
[1727962951169,0.24993543,60433.0,60405.0,0.44135088]
[1727962951170,0.24993543,60418.0,60405.0,0.44135088]
[1727962951407,0.07448114,60438.0,60411.0,0.24993543]
[1727962951408,0.02499354,60425.0,60411.0,0.24993543]
[1727962951650,0.44135088,60438.0,60404.0,0.24993543]
[1727962951651,0.331011,60421.0,60404.0,0.24993543]
[1727962951883,0.24993543,60429.0,60412.0,0.24993543]
[1727962952134,0.165522,60415.0,60407.0,0.331085]
[1727962952412,0.330953,60432.0,60404.0,0.26076793]
[1727962952413,0.330923,60437.0,60417.0,0.165515]
[1727962952639,0.003638,60449.0,60421.0,0.165504]
[1727962952640,0.41542743,60426.0,60421.0,0.165504]
[1727962952869,0.165494,60425.0,60421.0,0.165504]
[1727962953291,0.330992,60425.0,60416.0,0.009]
[1727962953294,0.165517,60417.0,60413.0,0.24993543]
[1727962953527,0.331026,60419.0,60413.0,0.24493543]
[1727962953759,0.165502,60422.0,60417.0,0.165514]
[1727962953992,0.165502,60422.0,60405.0,0.44135088]
[1727962953993,0.24993543,60421.0,60410.0,0.331066]
[1727962954229,0.02594162,60425.0,60404.0,0.24993543]
[1727962954230,0.33107,60411.0,60404.0,0.24993543]
[1727962954497,0.023,60424.0,60404.0,0.24993543]
[1727962954753,0.331027,60418.0,60405.0,0.44135088]
[1727962955000,0.1,60432.0,60410.0,0.331067]
[1727962955001,0.02594687,60420.0,60410.0,0.331067]
[1727962955232,0.02594687,60420.0,60416.0,0.165518]
[1727962955473,0.02594687,60420.0,60405.0,0.44135088]
[1727962955474,0.33275,60439.0,60417.0,0.00330265]
[1727962955757,0.38920464,60435.0,60421.0,0.331009]
[1727962956014,0.001838,60439.0,60425.0,0.165493]
[1727962956015,0.330955,60432.0,60425.0,0.165493]
[1727962956273,0.001838,60439.0,60421.0,0.246804]
[1727962956507,0.001838,60439.0,60422.0,0.24993543]
[1727962956747,0.165482,60430.0,60422.0,0.24993543]
[1727962957024,0.33094,60434.0,60422.0,0.24993543]
[1727962957247,0.330951,60432.0,60422.0,0.58093943]
[1727962957495,0.0333778,60434.0,60422.0,0.24993543]
[1727962957740,0.165482,60430.0,60425.0,0.165493]
[1727962957979,0.16547,60434.0,60430.0,0.165479]
[1727962958229,0.001838,60439.0,60433.0,0.165471]
[1727962958455,0.001838,60439.0,60423.0,0.44135088]
[1727962958456,0.16547,60434.0,60426.0,0.33098]
[1727962958720,0.001838,60439.0,60423.0,0.44135088]
[1727962958721,0.02593794,60436.0,60429.0,0.24993543]
[1727962958970,0.003838,60439.0,60438.0,0.165458]
[1727962959428,0.001838,60439.0,60438.0,0.165458]
[1727962959677,0.001838,60439.0,60438.0,0.261858]
[1727962959909,0.001838,60439.0,60438.0,0.340358]
[1727962961885,0.000816,60455.0,60454.0,0.165415]
[1727962962117,0.000816,60455.0,60454.0,0.60676588]
[1727962962355,0.000816,60455.0,60454.0,0.76995259]
[1727962962603,0.000816,60455.0,60450.0,0.005]
[1727962962604,0.000816,60455.0,60450.0,0.33085]
[1727962962842,0.000816,60455.0,60454.0,0.60676588]
[1727962963333,0.000816,60455.0,60454.0,0.44135088]
[1727962963589,0.000816,60455.0,60454.0,0.44835088]
[1727962963839,0.000816,60455.0,60454.0,0.86370131]
[1727962964083,0.000816,60455.0,60454.0,0.77695259]
[1727962964343,0.0002,60459.0,60458.0,0.165404]
[1727962964593,0.58064943,60476.0,60471.0,0.165368]
[1727962964594,0.02592492,60475.0,60471.0,0.165368]
[1727962964836,0.24993543,60476.0,60471.0,0.60671888]
[1727962965077,0.0001,60480.0,60471.0,0.60671888]
[1727962965337,0.165358,60475.0,60471.0,0.60671888]
[1727962965607,0.165358,60475.0,60461.0,0.33079]
[1727962965608,0.33072,60475.0,60461.0,0.33079]
[1727962965850,0.165358,60475.0,60470.0,0.24993543]
[1727962966102,0.0001,60480.0,60465.0,0.77211688]
[1727962966347,0.0001,60480.0,60478.0,0.60669988]
[1727962966593,0.0001,60480.0,60471.0,0.011]
[1727962966594,0.330791,60480.0,60472.0,0.330731]
[1727962966828,0.330791,60480.0,60466.0,0.61715088]
[1727962966829,0.165547,60479.0,60467.0,0.24993543]
[1727962967064,0.0002,60479.0,60467.0,0.24993543]
[1727962967330,0.3307,60478.0,60467.0,0.330756]
[1727962967560,0.0002,60479.0,60466.0,0.1758]
[1727962967561,0.330729,60473.0,60466.0,0.1758]
[1727962967804,0.0002,60479.0,60466.0,0.341181]
[1727962967805,0.16537,60471.0,60466.0,0.341181]
[1727962968050,0.330894,60479.0,60466.0,0.1758]
[1727962968051,0.165372,60470.0,60466.0,0.1758]
[1727962968278,0.0002,60479.0,60470.0,0.001]
[1727962968279,0.165368,60471.0,60470.0,0.001]
[1727962968581,0.330732,60472.0,60470.0,0.001]
[1727962968582,0.000816,60472.0,60470.0,0.001]
[1727962968821,0.02673764,60472.0,60470.0,0.330741]
[1727962969055,0.000816,60472.0,60471.0,0.165368]
[1727962969299,0.000816,60472.0,60467.0,0.330758]
[1727962969539,0.000816,60472.0,60471.0,0.165368]
[1727962969805,0.000816,60472.0,60468.0,0.165376]
[1727962970036,0.165375,60469.0,60466.0,0.1758]
[1727962970271,0.165377,60468.0,60466.0,0.0822]
[1727962970509,0.330739,60471.0,60466.0,0.0822]
[1727962970742,0.000816,60472.0,60458.0,0.330807]
[1727962970743,0.330769,60466.0,60458.0,0.330807]
[1727962970988,0.000816,60472.0,60463.0,0.24993543]
[1727962971239,0.165384,60466.0,60462.0,0.165392]
[1727962971493,0.000816,60472.0,60456.0,0.0762]
[1727962971734,0.000816,60472.0,60447.0,0.44135088]
[1727962971735,0.330781,60463.0,60458.0,0.24993543]
[1727962971973,0.1,60471.0,60458.0,0.69128631]
[1727962971974,0.330762,60467.0,60458.0,0.69128631]
[1727962972450,0.001,60466.0,60458.0,0.69128631]
[1727962972689,0.001,60466.0,60464.0,0.165385]
[1727962972922,0.02592456,60471.0,60452.0,0.44135088]
[1727962973160,0.330762,60467.0,60458.0,0.24993543]
[1727962973390,0.165396,60461.0,60458.0,0.24993543]
[1727962973643,0.001,60467.0,60458.0,0.24993543]
[1727962973909,0.001,60467.0,60442.0,0.095]
[1727962973910,0.330791,60461.0,60442.0,0.095]
[1727962974147,0.330765,60466.0,60456.0,0.24993543]
[1727962974379,0.330765,60466.0,60451.0,0.330846]
[1727962974380,0.330793,60461.0,60454.0,0.330827]
[1727962974622,0.123,60464.0,60445.0,0.075]
[1727962974859,0.165415,60454.0,60453.0,0.24993543]
[1727962975346,0.330825,60455.0,60445.0,0.405875]
[1727962975347,0.165413,60455.0,60451.0,0.165421]
[1727962975572,0.37067005,60463.0,60445.0,0.075]
[1727962975573,0.330804,60459.0,60454.0,0.165413]
[1727962975827,0.165413,60455.0,60449.0,0.330854]
[1727962976067,0.165413,60455.0,60451.0,0.165422]
[1727962976322,0.165413,60455.0,60445.0,0.51635088]
[1727962976323,0.165413,60455.0,60446.0,0.165436]
[1727962976324,0.165426,60450.0,60446.0,0.165436]
[1727962976565,0.165426,60450.0,60445.0,0.075]
[1727962976799,0.165416,60454.0,60450.0,0.165423]
[1727962977028,0.16542,60452.0,60448.0,0.16543]
[1727962977271,0.165426,60450.0,60446.0,0.165436]
[1727962977567,0.023,60464.0,60430.0,0.330957]
[1727962977568,0.165445,60443.0,60437.0,0.41539443]
[1727962977799,0.023,60456.0,60437.0,0.41539443]
[1727962977800,0.6617,60451.0,60437.0,0.24993543]
[1727962978043,0.123,60456.0,60437.0,0.24993543]
[1727962978044,0.165458,60438.0,60437.0,0.24993543]
[1727962978280,0.165464,60436.0,60435.0,0.0808]
[1727962978749,0.165464,60436.0,60429.0,0.41541743]
[1727962978750,0.165472,60434.0,60429.0,0.41541743]
[1727962978980,0.165475,60432.0,60429.0,0.41541743]
[1727962979448,0.330931,60436.0,60435.0,0.008]
[1727962979688,0.496395,60436.0,60435.0,0.008]
[1727962980606,0.330931,60436.0,60430.0,0.24993543]
[1727962980860,0.330942,60434.0,60430.0,0.24993543]
[1727962981088,0.330942,60434.0,60429.0,0.165482]
[1727962981089,0.023,60440.0,60429.0,0.008]
[1727962981371,0.1,60441.0,60429.0,0.008]
[1727962981372,0.001,60432.0,60430.0,0.24993543]
[1727962981603,0.24993543,60460.0,60430.0,0.24993543]
[1727962981604,0.165456,60439.0,60435.0,0.165466]
[1727962981837,0.24993543,60447.0,60424.0,0.44135088]
[1727962982078,0.24993543,60447.0,60430.0,0.25393543]
[1727962982079,0.02499354,60446.0,60430.0,0.25393543]
[1727962982322,0.02499354,60446.0,60433.0,0.16547]
[1727962982323,0.165462,60437.0,60433.0,0.16547]
[1727962982585,0.165462,60437.0,60434.0,0.165469]
[1727962982817,0.165462,60437.0,60435.0,0.001]
[1727962983071,0.33089,60444.0,60435.0,0.001]
[1727962983340,0.77212888,60464.0,60436.0,0.165463]
[1727962983341,0.330898,60442.0,60436.0,0.165463]
[1727962983583,0.165457,60439.0,60435.0,0.166466]
[1727962983822,0.35683353,60442.0,60435.0,0.166466]
[1727962983823,0.02593553,60442.0,60435.0,0.331933]
[1727962984118,0.02593553,60442.0,60441.0,0.16545]
[1727962984386,0.25193543,60469.0,60442.0,0.330894]
[1727962984387,0.330778,60464.0,60442.0,0.330894]
[1727962984653,0.24993543,60451.0,60450.0,0.60677588]
[1727962984879,0.02593291,60458.0,60455.0,0.165411]
[1727962985144,0.02593291,60458.0,60450.0,0.44135088]
[1727962985374,0.02593291,60458.0,60453.0,0.24993543]
[1727962985605,0.02593291,60458.0,60457.0,0.165406]
[1727962985845,0.330726,60474.0,60458.0,0.105]
[1727962986071,0.0002,60479.0,60458.0,0.105]
[1727962986072,0.24993543,60473.0,60471.0,0.165368]
[1727962986298,0.0002,60479.0,60471.0,0.165368]
[1727962986535,0.0002,60479.0,60471.0,0.16710122]
[1727962987247,0.0002,60479.0,60471.0,0.332768]
[1727962987766,0.0002,60479.0,60471.0,0.59595471]
[1727962988245,0.0002,60479.0,60471.0,0.432768]
[1727962988716,0.330701,60478.0,60471.0,0.332768]
[1727962988957,0.0261182,60479.0,60471.0,0.332768]
[1727962989227,0.0261182,60479.0,60471.0,0.93730559]
[1727962989228,0.0002,60479.0,60471.0,0.93730559]
[1727962989452,0.001816,60472.0,60471.0,1.04530559]
[1727962989918,0.000816,60472.0,60471.0,1.04230559]
[1727962990149,0.0002,60479.0,60478.0,0.165349]
[1727962990404,0.0002,60479.0,60478.0,0.60669988]
[1727962990644,0.0002,60479.0,60478.0,0.165349]
[1727962990908,0.000816,60493.0,60485.0,0.005]